bitfinex-derivatives/quotes_SOLF0:USTF0_20250808
["timestamp","ask_amount","ask_price","bid_price","bid_amount"]
[1754645537135,3.1,175.58,175.57,8.7944]
[1754645537527,3.1,175.58,175.57,3.1]
[1754645538129,8.7941,175.58,175.57,3.1]
[1754645539631,5.6938,175.59,175.56,5.6947]
[1754645539837,3.1,175.57,175.56,5.6947]
[1754645540136,3.1,175.57,175.55,5.6949]
[1754645540331,3.1,175.57,175.56,3.1]
[1754645540837,3.1,175.57,175.56,8.7947]
[1754645542035,3.1,175.57,175.54,6.31398744]
[1754645542236,3.1,175.57,175.55,3.1]
[1754645542435,3.1,175.56,175.55,3.1]
[1754645543334,3.1,175.56,175.55,8.795]
[1754645543831,3.1,175.56,175.54,3.21398744]
[1754645543832,3.1,175.55,175.53,8.7955]
[1754645544433,3.1,175.54,175.53,8.7957]
[1754645545634,3.1,175.54,175.52,5.6959]
[1754645545837,3.1,175.54,175.51,3.1]
[1754645546244,8.7955,175.54,175.51,8.7961]
[1754645546540,3.1,175.53,175.51,8.7961]
[1754645547242,3.1,175.53,175.52,5.696]
[1754645547842,3.1,175.53,175.52,8.796]
[1754645550044,3.1,175.53,175.5,5.6965]
[1754645550546,5.6958,175.53,175.51,3.1]
[1754645550746,3.1,175.52,175.51,3.1]
[1754645551950,3.1,175.52,175.51,8.7963]
[1754645552748,51.98270529,175.68,175.53,8.7957]
[1754645552749,3.21398744,175.59,175.53,8.7957]
[1754645552950,3.1,175.6,175.55,3.21398744]
[1754645553150,3.1,175.59,175.56,3.1]
[1754645553453,8.7937,175.6,175.56,3.1]
[1754645553643,3.1,175.59,175.56,3.1]
[1754645553849,3.1,175.59,175.58,5.6939]
[1754645554049,3.1,175.59,175.58,3.1]
[1754645554451,3.1,175.59,175.56,5.6946]
[1754645554649,3.1,175.59,175.56,8.7946]
[1754645555548,3.1,175.59,175.48,235.0]
[1754645555753,3.1,175.56,175.5,3.1]
[1754645556156,3.21398744,175.57,175.5,8.7965]
[1754645556353,3.28,175.51,175.5,8.7965]
[1754645556755,3.28,175.56,175.51,5.6962]
[1754645556949,3.28,175.56,175.51,8.7662]
[1754645557451,3.28,175.56,175.53,3.07]
[1754645557754,3.21398744,175.61,175.54,3.21398744]
[1754645557955,3.28,175.57,175.56,3.07]
[1754645558755,3.21398744,175.61,175.55,3.07]
[1754645559053,3.28,175.58,175.54,3.21398744]
[1754645559247,3.28,175.58,175.56,3.07]
[1754645559448,3.28,175.57,175.56,8.7645]
[1754645559960,3.28,175.63,175.57,3.07]
[1754645560152,3.21398744,175.69,175.6,3.21398744]
[1754645560356,5.6923,175.64,175.61,5.6929]
[1754645560566,8.9723,175.64,175.63,3.07]
[1754645560758,3.28,175.64,175.6,6.28398744]
[1754645561061,3.28,175.61,175.6,6.28398744]
[1754645561764,3.28,175.62,175.61,3.07]
[1754645562262,3.28,175.63,175.62,8.7627]
[1754645562958,3.28,175.63,175.62,3.07]
[1754645563464,3.28,175.63,175.62,8.7628]
[1754645563660,5.6922,175.64,175.62,5.6928]
[1754645563861,8.9722,175.64,175.63,3.07]
[1754645564067,8.9725,175.63,175.62,3.07]
[1754645564363,3.28,175.62,175.61,3.07]
[1754645565065,5.6925,175.63,175.6,8.90718744]
[1754645565266,3.28,175.61,175.6,11.97718744]
[1754645565462,3.28,175.66,175.58,8.90778744]
[1754645565765,3.28,175.64,175.58,8.90778744]
[1754645565960,3.28,175.64,175.58,11.97778744]
[1754645566162,3.28,175.64,175.57,5.6942]
[1754645566354,3.28,175.64,175.57,3.07]
[1754645566654,3.28,175.61,175.58,3.21398744]
[1754645566858,3.21398744,175.65,175.59,3.07]
[1754645567058,3.28,175.6,175.59,3.07]
[1754645568865,3.28,175.6,175.59,8.7637]
[1754645569067,3.28,175.64,175.58,3.21398744]
[1754645569270,3.28,175.64,175.6,3.07]
[1754645569471,5.693,175.62,175.59,5.6937]
[1754645569663,3.28,175.61,175.59,8.7637]
[1754645569864,3.28,175.6,175.56,6.28398744]
[1754645570067,3.28,175.6,175.57,3.07]
[1754645571365,5.6936,175.6,175.57,8.7643]
[1754645571570,3.28,175.62,175.57,3.07]
[1754645571874,3.28,175.58,175.57,3.07]
[1754645572573,3.28,175.58,175.57,8.7644]
[1754645573676,3.28,175.58,175.55,3.07]
[1754645573870,3.28,175.58,175.52,3.07]
[1754645573871,6.49398744,175.58,175.52,3.07]
[1754645574065,3.21398744,175.58,175.52,3.07]
[1754645574269,5.6949,175.56,175.53,5.6956]
[1754645574470,3.28,175.55,175.53,8.7656]
[1754645574674,3.28,175.54,175.53,8.7656]
[1754645575074,5.6944,175.57,175.54,5.6951]
[1754645575272,3.28,175.56,175.55,3.07]
[1754645576176,8.9747,175.56,175.55,3.07]
[1754645576580,5.6947,175.56,175.54,5.6951]
[1754645576778,3.28,175.55,175.54,8.7651]
[1754645577480,3.28,175.55,175.53,5.6955]
[1754645577680,5.6951,175.55,175.53,5.6955]
[1754645577877,3.28,175.54,175.53,5.6955]
[1754645578574,5.6951,175.55,175.52,8.7659]
[1754645578775,3.28,175.53,175.52,8.7659]
[1754645580379,3.28,175.54,175.53,8.7656]
[1754645580580,3.28,175.55,175.54,3.07]
[1754645582381,8.975,175.55,175.54,3.07]
[1754645582677,3.28,175.54,175.52,5.6958]
[1754645583180,3.21398744,175.58,175.52,5.6958]
[1754645583375,3.28,175.53,175.52,8.7658]
[1754645583678,3.28,175.52,175.47,3.07]
[1754645583877,3.28,175.51,175.49,3.07]
[1754645584074,3.28,175.51,175.45,3.21398744]
[1754645584275,3.28,175.47,175.44,3.07]
[1754645584470,3.28,175.47,175.4,3.07]
[1754645584674,3.28,175.47,175.46,5.6979]
[1754645584874,3.21398744,175.49,175.44,3.07]
[1754645585082,3.28,175.45,175.44,3.07]
[1754645585389,3.28,175.44,175.39,3.07]
[1754645585676,3.28,175.42,175.32,3.07]
[1754645585873,3.08,175.38,175.32,3.07]
[1754645586079,3.08,175.38,175.3,6.50398744]
[1754645586275,3.08,175.38,175.31,3.29]
[1754645586775,8.7808,175.38,175.34,5.7016]
[1754645586971,3.08,175.37,175.35,3.29]
[1754645587176,3.12285017,175.36,175.35,3.29]
[1754645587572,3.12285017,175.36,175.35,8.9915]
[1754645587775,0.04285017,175.36,175.35,8.9915]
[1754645588780,0.00364278,175.36,175.35,8.9915]
[1754645590686,3.08,175.43,175.4,3.29]
[1754645590879,104.52,175.47,175.39,3.29]
[1754645591183,3.08,175.43,175.35,3.29]
[1754645591386,3.08,175.41,175.33,3.29]
[1754645591586,104.52,175.47,175.33,3.29]
[1754645591587,3.08,175.39,175.33,3.29]
[1754645591987,3.08,175.39,175.34,5.73952414]
[1754645592283,5.7009,175.37,175.34,5.73952414]
[1754645592490,3.08,175.41,175.35,3.29]
[1754645593290,5.7,175.4,175.36,5.74241194]
[1754645593585,8.32913608,175.46,175.37,3.29]
[1754645593793,5.6987,175.44,175.4,5.6998]
[1754645594088,3.08,175.43,175.36,5.24913608]
[1754645594288,3.08,175.46,175.39,3.29]
[1754645594487,5.6983,175.45,175.41,8.9894]
[1754645594794,3.08,175.43,175.42,3.29]
[1754645596695,3.08,175.43,175.42,8.9892]
[1754645596897,5.6984,175.45,175.42,8.9892]
[1754645597196,3.08,175.46,175.4,5.73682115]
[1754645597490,3.08,175.46,175.4,9.02682115]
[1754645597691,3.08,175.43,175.41,3.29]
[1754645598195,3.08,175.43,175.41,8.9895]
[1754645598399,3.08,175.43,175.42,3.29]
[1754645598898,8.7789,175.43,175.42,3.29]
[1754645599297,8.7789,175.43,175.4,5.73682115]
[1754645599599,3.08,175.42,175.41,3.29]
[1754645600586,8.7792,175.42,175.4,0.03702115]
[1754645600786,3.08,175.41,175.4,0.03702115]
[1754645601794,3.08,175.41,175.4,3.32702115]
[1754645601992,5.699,175.43,175.4,9.02692115]
[1754645602197,8.779,175.43,175.42,3.29]
[1754645602398,3.08,175.43,175.42,3.29]
[1754645602786,3.08,175.45,175.4,5.28615723]
[1754645602985,3.08,175.45,175.43,3.29]
[1754645603189,3.08,175.43,175.41,8.9895]
[1754645603592,3.08,175.42,175.41,8.9895]
[1754645603795,3.08,175.42,175.41,3.29]
[1754645603995,3.08,175.42,175.4,5.28615723]
[1754645604289,3.08,175.41,175.4,0.03702115]
[1754645604990,8.7796,175.41,175.4,0.03702115]
[1754645605794,3.08,175.41,175.4,0.03702115]
[1754645605995,3.08,175.42,175.4,3.32702115]
[1754645606393,3.08,175.41,175.4,0.03702115]
[1754645606897,8.7796,175.41,175.4,0.03702115]
[1754645607895,3.08,175.41,175.4,3.32702115]
[1754645608292,3.08,175.45,175.4,3.32702115]
[1754645608500,5.6985,175.45,175.41,3.29]
[1754645608701,3.08,175.43,175.42,3.29]
[1754645608993,3.08,175.43,175.4,0.03702115]
[1754645609197,5.6986,175.44,175.4,3.32702115]
[1754645609394,3.08,175.41,175.4,3.32702115]
[1754645609895,3.08,175.43,175.41,5.6996]
[1754645610097,3.08,175.42,175.41,8.9896]
[1754645610890,3.08,175.43,175.42,5.6992]
[1754645611198,3.08,175.49,175.42,3.29]
[1754645611501,3.08,175.49,175.44,3.29]
[1754645611895,5.6978,175.47,175.45,0.03813741]
[1754645612097,3.08,175.46,175.45,0.03813741]
[1754645612407,8.7779,175.46,175.45,0.03813741]
[1754645614901,3.22010134,175.46,175.4,3.29]
[1754645615101,3.08,175.43,175.39,3.29]
[1754645615493,3.08,175.42,175.39,3.29]
[1754645615700,3.08,175.42,175.4,3.29]
[1754645615998,3.18,175.43,175.42,3.23]
[1754645616296,3.22010134,175.46,175.4,3.23]
[1754645616501,3.18,175.41,175.4,3.23]
[1754645616999,3.18,175.41,175.4,8.9297]
[1754645617201,3.18,175.4,175.39,3.23]
[1754645617901,5.6991,175.43,175.39,8.9301]
[1754645618108,3.18,175.42,175.4,3.23]
[1754645618294,5.6991,175.43,175.4,3.23]
[1754645618500,3.18,175.41,175.4,8.9296]
[1754645619407,5.6993,175.42,175.39,5.7001]
[1754645619708,3.18,175.4,175.39,5.7001]
[1754645620006,3.18,175.4,175.39,8.9301]
[1754645620306,3.18,175.4,175.39,3.23]
[1754645620508,3.18,175.39,175.35,3.22010134]
[1754645620807,3.18,175.41,175.36,3.23]
[1754645621000,5.6999,175.4,175.37,5.7007]
[1754645621505,3.18,175.38,175.37,5.7007]
[1754645622207,3.18,175.38,175.36,8.931]
[1754645622410,3.18,175.37,175.36,5.701]
[1754645622707,3.18,175.39,175.37,8.9306]
[1754645623007,3.18,175.38,175.37,3.23]
[1754645623209,5.7004,175.39,175.36,3.23]
[1754645623408,3.18,175.38,175.35,5.7012]
[1754645623702,3.18,175.38,175.32,6.45010134]
[1754645623902,3.18,175.37,175.3,3.22010134]
[1754645624303,5.7017,175.35,175.31,5.7026]
[1754645624501,3.18,175.33,175.31,5.7026]
[1754645624705,3.18,175.33,175.32,3.26930401]
[1754645625109,3.18,175.33,175.32,0.03930401]
[1754645625308,8.8822,175.33,175.32,0.03930401]
[1754645626310,3.18,175.33,175.32,0.03930401]
[1754645626708,8.8822,175.33,175.32,0.03930401]
[1754645627108,3.18,175.33,175.32,0.03930401]
[1754645628110,3.18,175.33,175.32,3.26930401]
[1754645631509,3.18,175.35,175.33,3.23]
[1754645632411,3.18,175.35,175.34,3.23]
[1754645633717,8.8809,175.37,175.34,8.9318]
[1754645633914,3.18,175.36,175.35,3.23]
[1754645634216,3.18,175.36,175.33,3.23]
[1754645634517,3.18,175.35,175.34,3.23]
[1754645634718,3.22010134,175.38,175.32,5.74170401]
[1754645634912,3.18,175.34,175.32,0.03930401]
[1754645635214,3.18,175.37,175.32,3.26930401]
[1754645635416,5.7018,175.34,175.32,3.26930401]
[1754645635609,3.18,175.33,175.32,3.26930401]
[1754645636018,3.18,175.33,175.32,8.97180401]
[1754645636213,3.22010134,175.38,175.32,8.97180401]
[1754645636416,3.18,175.37,175.33,3.23]
[1754645636616,3.18,175.34,175.32,0.03930401]
[1754645636818,3.18,175.33,175.32,3.26930401]
[1754645637221,3.18,175.33,175.32,0.03930401]
[1754645637620,8.8822,175.33,175.32,0.03930401]
[1754645638023,3.18,175.33,175.32,0.03930401]
[1754645638323,3.18,175.35,175.32,3.26930401]
[1754645638522,3.18,175.34,175.33,3.23]
[1754645638823,3.18,175.36,175.33,3.23]
[1754645639217,3.18,175.36,175.34,3.23]
[1754645639423,3.18,175.36,175.35,3.23]
[1754645640823,107.88010134,175.42,175.34,3.22010134]
[1754645641016,5.7001,175.4,175.36,5.701]
[1754645641213,5.7001,175.4,175.37,3.23]
[1754645641418,3.18,175.39,175.38,3.23]
[1754645641826,107.88010134,175.42,175.36,3.22010134]
[1754645641827,3.18,175.41,175.36,3.22010134]
[1754645642021,3.18,175.41,175.37,3.23]
[1754645642628,3.18,175.41,175.38,5.7004]
[1754645642926,3.18,175.4,175.39,3.23]
[1754645643923,3.18,175.4,175.36,3.23]
[1754645644333,3.18,175.4,175.34,3.22010134]
[1754645644532,3.18,175.4,175.37,3.23]
[1754645645031,3.18,175.38,175.36,8.9312]
[1754645645333,3.18,175.37,175.36,8.9312]
[1754645646036,5.7,175.4,175.37,5.7007]
[1754645646333,3.12,175.39,175.38,3.15]
[1754645646526,3.12,175.41,175.39,3.15]
[1754645646725,3.12,175.41,175.4,3.15]
[1754645647429,3.12,175.41,175.4,8.8499]
[1754645647631,3.12,175.43,175.4,3.22010134]
[1754645647833,3.12,175.43,175.42,3.15]
[1754645648629,3.12,175.45,175.42,3.15]
[1754645648831,3.12,175.43,175.4,6.37010134]
[1754645649136,3.12,175.43,175.38,6.37010134]
[1754645649435,3.12,175.43,175.39,3.15]
[1754645649632,3.12,175.43,175.4,3.15]
[1754645650133,3.12,175.42,175.41,3.15]
[1754645650536,3.12,175.42,175.41,8.8496]
[1754645652335,5.6995,175.42,175.4,8.85]
[1754645652530,3.12,175.41,175.4,8.85]
[1754645657445,3.12,175.41,175.38,3.15]
[1754645657637,6.34010134,175.41,175.34,3.22010134]
[1754645657832,3.12,175.4,175.33,3.15]
[1754645658044,3.12,175.38,175.31,3.22010134]
[1754645658438,5.7014,175.37,175.32,3.15]
[1754645658742,3.12,175.35,175.34,3.15]
[1754645659538,3.12,175.35,175.34,8.8518]
[1754645661143,5.7008,175.38,175.34,8.8518]
[1754645661336,3.12,175.4,175.37,3.22010134]
[1754645661540,104.46,175.42,175.38,3.15]
[1754645661851,107.58,175.42,175.41,8.8498]
[1754645662038,3.12,175.42,175.41,3.15]
[1754645662243,3.12,175.42,175.39,12.07050134]
[1754645662543,3.12,175.42,175.37,3.22010134]
[1754645662738,3.12,175.42,175.38,3.15]
[1754645663046,3.12,175.42,175.39,5.7002]
[1754645663249,3.12,175.42,175.36,6.37010134]
[1754645663546,3.12,175.39,175.36,8.8513]
[1754645664444,3.12,175.39,175.37,5.7011]
[1754645664746,5.7,175.41,175.37,5.7011]
[1754645664948,3.12,175.38,175.37,5.7011]
[1754645665351,3.12,175.37,175.36,8.8513]
[1754645666049,3.12,175.37,175.34,3.22010134]
[1754645666242,3.12,175.37,175.33,3.15]
[1754645666648,3.12,175.35,175.33,8.8523]
[1754645666950,3.12,175.34,175.33,8.8523]
[1754645667842,3.22010134,175.38,175.35,5.7017]
[1754645668049,3.12,175.36,175.35,8.8517]
[1754645668351,3.12,175.36,175.35,3.15]
[1754645668851,3.12,175.36,175.34,5.7019]
[1754645669150,5.7013,175.37,175.34,3.15]
[1754645669353,3.12,175.36,175.34,3.15]
[1754645669551,3.12,175.36,175.35,3.15]
[1754645672853,3.22010134,175.4,175.35,3.15]
[1754645672854,3.12,175.38,175.35,3.15]
[1754645673051,3.12,175.37,175.35,3.15]
[1754645673248,3.12,175.37,175.33,3.15]
[1754645673449,3.12,175.37,175.36,5.7015]
[1754645673649,3.12,175.37,175.36,8.8515]
[1754645673846,3.22010134,175.4,175.32,3.22010134]
[1754645674051,5.701,175.38,175.34,5.7019]
[1754645674259,3.12,175.37,175.34,8.8519]
[1754645674555,3.12,175.35,175.34,8.8519]
[1754645674954,6.34010134,175.36,175.31,3.15]
[1754645675258,3.12,175.35,175.31,3.15]
[1754645675654,3.12,175.35,175.29,3.15]
[1754645676257,5.702,175.35,175.32,5.7027]
[1754645676458,3.03,175.33,175.32,8.9827]
[1754645678448,5.702,175.35,175.32,8.9827]
[1754645678646,3.03,175.33,175.32,8.9827]
[1754645682058,3.22010134,175.36,175.32,3.28]
[1754645682359,3.03,175.35,175.32,3.28]
[1754645682557,5.7012,175.37,175.34,5.7019]
[1754645682758,8.7312,175.37,175.36,3.28]
[1754645682947,3.03,175.37,175.36,3.28]
[1754645683655,5.7008,175.38,175.36,5.7014]
[1754645683858,3.03,175.38,175.33,3.28]
[1754645684056,3.03,175.38,175.34,3.28]
[1754645684251,3.22010134,175.4,175.32,3.22010134]
[1754645684556,3.03,175.37,175.36,3.28]
[1754645685260,3.03,175.37,175.36,8.9814]
[1754645685659,3.03,175.41,175.35,3.28]
[1754645685855,3.03,175.4,175.39,3.28]
[1754645686250,3.03,175.4,175.39,8.9805]
[1754645686659,8.7298,175.42,175.4,3.28]
[1754645686961,3.03,175.41,175.4,3.28]
[1754645687660,3.03,175.41,175.39,5.7005]
[1754645687863,5.6998,175.42,175.39,5.7005]
[1754645688162,3.03,175.4,175.39,8.9805]
[1754645690361,8.91910134,175.44,175.4,5.7002]
[1754645690563,3.03,175.42,175.38,3.22010134]
[1754645690763,3.03,175.45,175.38,3.22010134]
[1754645690965,3.03,175.44,175.41,3.28]
[1754645691668,3.03,175.44,175.43,8.9789]
[1754645692668,3.03,175.44,175.42,5.6994]
[1754645692863,3.03,175.44,175.42,8.9794]
[1754645693160,3.03,175.43,175.42,3.28]
[1754645693665,3.03,175.43,175.42,8.9795]
[1754645693866,3.03,175.43,175.42,5.6995]
[1754645695863,3.03,175.43,175.42,8.9795]
[1754645696568,3.03,175.43,175.42,5.6995]
[1754645698070,3.03,175.43,175.41,5.6998]
[1754645698767,3.03,175.43,175.42,8.9795]
[1754645699769,3.22010134,175.47,175.42,3.28]
[1754645699967,3.03,175.47,175.41,3.28]
[1754645700365,386.76010134,175.5,175.42,3.22010134]
[1754645700568,386.76010134,175.5,175.38,11.4013]
[1754645700569,3.03,175.51,175.47,3.28]
[1754645700766,3.03,175.51,175.48,3.22010134]
[1754645700966,3.03,175.53,175.52,5.6961]
[1754645701272,3.03,175.53,175.47,3.28]
[1754645701664,3.03,175.51,175.48,5.6975]
[1754645701861,3.03,175.51,175.47,3.28]
[1754645702168,3.03,175.5,175.47,8.9777]
[1754645702764,104.46,175.55,175.49,3.28]
[1754645702765,5.6964,175.52,175.49,3.28]
[1754645702960,3.03,175.5,175.49,3.28]
[1754645703170,8.7264,175.52,175.49,3.28]
[1754645703469,3.03,175.5,175.49,3.28]
[1754645703868,3.03,175.5,175.48,5.6975]
[1754645704066,3.03,175.5,175.47,3.28]
[1754645704573,3.03,175.49,175.47,3.28]
[1754645704771,3.03,175.49,175.46,5.6982]
[1754645704772,3.03,175.49,175.46,8.9782]
[1754645705173,3.03,175.49,175.47,5.6978]
[1754645705365,8.91680134,175.51,175.43,3.22010134]
[1754645705572,3.03,175.49,175.48,3.28]
[1754645705776,3.03,175.49,175.48,8.9776]
[1754645708073,3.05,175.51,175.46,3.03]
[1754645708671,3.05,175.51,175.48,3.03]
[1754645709073,0.04153491,175.5,175.49,5.6973]
[1754645709379,0.04153491,175.5,175.49,8.91740134]
[1754645709679,0.04153491,175.5,175.49,11.94740134]
[1754645710577,3.05,175.57,175.55,3.03]
[1754645710777,3.05,175.56,175.55,3.03]
[1754645711473,3.05,175.56,175.55,8.7252]
[1754645711876,3.05,175.58,175.57,5.6946]
[1754645712176,3.05,175.6,175.57,3.03]
[1754645712481,3.05,175.63,175.58,5.6942]
[1754645712671,5.6934,175.61,175.58,8.7242]
[1754645712875,3.05,175.59,175.58,3.03]
[1754645713076,107.74010134,175.64,175.58,3.03]
[1754645713272,3.05,175.62,175.6,3.03]
[1754645713470,3.05,175.63,175.6,3.03]
[1754645713881,3.05,175.62,175.59,5.6938]
[1754645714379,107.74010134,175.64,175.59,8.7238]
[1754645714678,3.05,175.63,175.59,8.7238]
[1754645714983,3.05,175.6,175.58,0.03903282]
[1754645715582,3.05,175.59,175.58,0.03903282]
[1754645719780,8.744,175.59,175.58,0.03903282]
[1754645720175,3.05,175.59,175.58,0.03903282]
[1754645721179,3.05,175.61,175.59,3.03]
[1754645721385,3.05,175.61,175.6,3.03]
[1754645721684,3.22010134,175.64,175.58,0.03903282]
[1754645721877,3.05,175.6,175.59,3.03]
[1754645723285,3.05,175.6,175.59,8.724]
[1754645723478,3.05,175.62,175.59,3.03]
[1754645723982,3.05,175.62,175.61,5.6933]
[1754645724380,3.05,175.62,175.61,8.7233]
[1754645724782,3.05,175.62,175.6,8.7235]
[1754645724980,3.05,175.63,175.58,0.03903282]
[1754645725184,5.6931,175.62,175.59,3.03]
[1754645725484,3.05,175.6,175.59,3.03]
[1754645725881,3.05,175.6,175.59,8.724]
[1754645726077,3.05,175.6,175.59,5.694]
[1754645727181,3.05,175.6,175.59,8.724]
[1754645728381,3.05,175.6,175.59,3.03]
[1754645728584,3.05,175.6,175.58,0.03903282]
[1754645728986,8.744,175.59,175.58,0.03903282]
[1754645729574,3.05,175.59,175.58,0.03903282]
[1754645729783,3.05,175.59,175.58,3.06903282]
[1754645730284,3.05,175.59,175.55,5.6953]
[1754645730686,3.05,175.59,175.55,8.7253]
[1754645730885,3.05,175.59,175.56,5.6949]
[1754645731287,3.05,175.59,175.55,3.03]
[1754645731581,3.05,175.57,175.54,5.6955]
[1754645731785,3.05,175.57,175.56,0.03827651]
[1754645732388,8.7448,175.57,175.56,0.03827651]
[1754645732683,3.05,175.57,175.51,3.03]
[1754645733288,3.05,175.57,175.54,3.03]
[1754645733684,3.22010134,175.56,175.5,3.03]
[1754645733990,3.05,175.55,175.49,3.03]
[1754645734188,5.6959,175.54,175.5,5.6967]
[1754645734388,3.05,175.53,175.5,3.03]
[1754645734591,3.05,175.53,175.49,3.03]
[1754645734783,3.05,175.53,175.51,5.6964]
[1754645735088,0.04278727,175.54,175.51,8.7264]
[1754645735288,8.95868861,175.54,175.5,5.6967]
[1754645735488,3.05,175.51,175.5,8.7267]
[1754645736194,0.04121938,175.52,175.51,8.9566]
[1754645737290,16.72105007,175.63,175.51,5.7]
[1754645737494,3.02,175.61,175.55,3.22010134]
[1754645737687,5.6934,175.61,175.58,5.6943]
[1754645737996,3.02,175.6,175.59,3.26]
[1754645738398,3.02,175.6,175.59,8.954]
[1754645738696,3.02,175.6,175.57,3.26]
[1754645738891,3.02,175.59,175.58,8.99543465]
[1754645739196,16.72105007,175.63,175.58,5.73543465]
[1754645739396,3.02,175.62,175.58,8.99543465]
[1754645739694,3.02,175.61,175.58,8.99543465]
[1754645740199,3.02,175.6,175.59,3.26]
[1754645741596,3.02,175.6,175.59,8.954]
[1754645742398,3.22010134,175.61,175.58,0.04113465]
[1754645742701,6.24010134,175.59,175.58,0.04113465]
[1754645742895,11.93410134,175.59,175.58,0.04113465]
[1754645743094,3.22010134,175.59,175.53,3.26]
[1754645743402,5.6954,175.55,175.53,3.26]
[1754645743600,3.02,175.54,175.53,3.26]
[1754645743801,5.6954,175.55,175.51,5.6966]
[1754645744000,3.02,175.53,175.52,3.26]
[1754645744298,3.05866441,175.55,175.53,3.26]
[1754645744596,3.02,175.54,175.53,3.26]
[1754645744900,3.02,175.53,175.52,3.26]
[1754645745496,5.73426441,175.55,175.47,3.22010134]
[1754645745497,3.02,175.54,175.47,3.22010134]
[1754645745701,3.02,175.54,175.48,3.26]
[1754645745898,5.696,175.53,175.49,5.6971]
[1754645746090,5.696,175.53,175.5,3.26]
[1754645746291,3.02,175.51,175.5,3.26]
[1754645747607,3.02,175.51,175.5,8.9569]
[1754645747902,0.03904442,175.53,175.47,3.22010134]
[1754645747903,3.02,175.52,175.51,3.26]
[1754645748902,3.05904442,175.53,175.47,3.22010134]
[1754645749199,3.05904442,175.53,175.52,3.26]
[1754645749404,0.03904442,175.53,175.52,3.26]
[1754645751106,0.03904442,175.53,175.52,8.9563]
[1754645752513,3.22010134,175.61,175.56,5.695]
[1754645752713,3.02,175.58,175.57,3.26]
[1754645752905,3.02,175.59,175.56,3.22010134]
[1754645753100,3.02,175.61,175.58,8.9543]
[1754645753302,3.02,175.6,175.59,3.26]
[1754645753506,3.02,175.6,175.56,3.22010134]
[1754645753707,3.02,175.59,175.58,3.26]
[1754645754613,3.02,175.59,175.56,3.22010134]
[1754645754801,13.50094873,175.63,175.56,8.91500134]
[1754645754802,3.02,175.62,175.56,8.91500134]
[1754645755007,3.02,175.62,175.56,12.17500134]
[1754645755210,5.694,175.59,175.56,6.48010134]
[1754645755510,3.02,175.57,175.56,6.48010134]
[1754645756515,5.6938,175.6,175.56,12.17510134]
[1754645756715,3.02,175.59,175.58,3.26]
[1754645758211,3.02,175.59,175.56,8.91500134]
[1754645758416,3.02,175.58,175.57,3.26]
[1754645759216,5.6941,175.59,175.56,8.91500134]